[Event "Early-Titled-Tuesday-Blitz-September-05-2023"]
[Site "Chess.com"]
[Date "2023.09.05"]
[Round "5"]
[White "Massakru"]
[Black "aranibos"]
[Result "1-0"]
[WhiteElo "2431"]
[BlackElo "2266"]
[TimeControl "180+1"]
[EndTime "8:54:14 PDT"]
[Termination "Massakru won by resignation"]

1. e4 {[%clk 0:03:00.9]} 1... g6 {[%clk 0:02:59.7]} 2. d4 {[%clk 0:03:00.7]}
2... Bg7 {[%clk 0:03:00.1]} 3. Nf3 {[%clk 0:03:00.5]} 3... d6 {[%clk 0:03:00.5]}
4. Nc3 {[%clk 0:03:00]} 4... a6 {[%clk 0:03:00.6]} 5. a4 {[%clk 0:02:59.1]} 5...
Nc6 {[%clk 0:02:58.2]} 6. h3 {[%clk 0:02:56]} 6... e5 {[%clk 0:02:54.7]} 7. d5
{[%clk 0:02:53.6]} 7... Nce7 {[%clk 0:02:52.8]} 8. Be2 {[%clk 0:02:47.9]} 8...
h6 {[%clk 0:02:53]} 9. O-O {[%clk 0:02:47.1]} 9... g5 {[%clk 0:02:52.7]} 10. Nd2
{[%clk 0:02:44]} 10... Ng6 {[%clk 0:02:51.9]} 11. Nc4 {[%clk 0:02:43]} 11... Nf6
{[%clk 0:02:46.7]} 12. Ne3 {[%clk 0:02:36.1]} 12... Nf4 {[%clk 0:02:45.4]} 13.
Bf3 {[%clk 0:02:32.1]} 13... h5 {[%clk 0:02:35]} 14. Nf5 {[%clk 0:02:32]} 14...
Bxf5 {[%clk 0:02:32.3]} 15. exf5 {[%clk 0:02:31.6]} 15... g4 {[%clk 0:02:25.7]}
16. hxg4 {[%clk 0:02:22]} 16... hxg4 {[%clk 0:02:24.8]} 17. Bxg4 {[%clk
0:02:21.5]} 17... Nxg4 {[%clk 0:01:43]} 18. Qxg4 {[%clk 0:02:15.7]} 18... Qf6
{[%clk 0:01:21.9]} 19. Bxf4 {[%clk 0:02:05.5]} 19... exf4 {[%clk 0:01:21.4]} 20.
Rfe1+ {[%clk 0:02:00.6]} 20... Kf8 {[%clk 0:01:20.2]} 21. Qxf4 {[%clk
0:01:36.3]} 21... Rh4 {[%clk 0:01:19.5]} 22. Qf3 {[%clk 0:01:32.1]} 22... Qh6
{[%clk 0:01:17.1]} 23. g3 {[%clk 0:01:30.2]} 23... Rc4 {[%clk 0:01:10.9]} 24.
Re4 {[%clk 0:01:19.2]} 24... Rxe4 {[%clk 0:01:06.1]} 25. Nxe4 {[%clk 0:01:20.1]}
25... Bxb2 {[%clk 0:01:03.9]} 26. Rb1 {[%clk 0:01:16.9]} 26... Be5 {[%clk
0:00:54.3]} 27. Kg2 {[%clk 0:01:01.5]} 27... b6 {[%clk 0:00:44.6]} 28. Rh1
{[%clk 0:00:53.6]} 28... Qg7 {[%clk 0:00:44.9]} 29. f6 {[%clk 0:00:46.3]} 29...
Qg8 {[%clk 0:00:38.3]} 30. Qf5 {[%clk 0:00:36.6]} 30... Ke8 {[%clk 0:00:35.8]}
31. Ng5 {[%clk 0:00:31.1]} 31... Kd8 {[%clk 0:00:20.1]} 32. Nxf7+ {[%clk
0:00:22]} 32... Qxf7 {[%clk 0:00:18.4]} 33. Rh8+ {[%clk 0:00:21.8]} 33... Qe8
{[%clk 0:00:18.2]} 34. Rxe8+ {[%clk 0:00:19]} 34... Kxe8 {[%clk 0:00:18.5]} 35.
Qe6+ {[%clk 0:00:19.1]} 35... Kd8 {[%clk 0:00:18.7]} 36. Qg8+ {[%clk 0:00:18.6]}
36... Kd7 {[%clk 0:00:18.4]} 37. Qxa8 {[%clk 0:00:18.5]} 37... Bxf6 {[%clk
0:00:19]} 38. Qxa6 {[%clk 0:00:18.4]} 38... Be5 {[%clk 0:00:18.3]} 39. Qb5+
{[%clk 0:00:18]} 1-0

[Event "Early-Titled-Tuesday-Blitz-September-05-2023"]
[Site "Chess.com"]
[Date "2023.09.05"]
[Round "5"]
[White "chessculator16"]
[Black "Zarinur"]
[Result "0-1"]
[WhiteElo "2215"]
[BlackElo "2528"]
[TimeControl "180+1"]
[EndTime "8:54:16 PDT"]
[Termination "Zarinur won by resignation"]

1. d4 {[%clk 0:03:00.9]} 1... Nf6 {[%clk 0:02:56.6]} 2. c4 {[%clk 0:03:01]} 2...
e6 {[%clk 0:02:51.1]} 3. Nc3 {[%clk 0:03:01]} 3... Bb4 {[%clk 0:02:50.1]} 4. Qc2
{[%clk 0:03:01.1]} 4... d5 {[%clk 0:02:49]} 5. cxd5 {[%clk 0:03:00.9]} 5... Qxd5
{[%clk 0:02:49.9]} 6. Nf3 {[%clk 0:03:00]} 6... Qf5 {[%clk 0:02:49]} 7. Qb3
{[%clk 0:03:00.1]} 7... a5 {[%clk 0:02:41.8]} 8. e3 {[%clk 0:02:57.8]} 8... Nc6
{[%clk 0:02:38.3]} 9. Bd2 {[%clk 0:02:55.8]} 9... O-O {[%clk 0:02:29.5]} 10. Be2
{[%clk 0:02:52.1]} 10... Bd7 {[%clk 0:02:21.8]} 11. h3 {[%clk 0:02:51.6]} 11...
Ne4 {[%clk 0:02:11.8]} 12. g4 {[%clk 0:02:41.1]} 12... Nxd2 {[%clk 0:02:00]} 13.
Kxd2 {[%clk 0:02:39.1]} 13... Qd5 {[%clk 0:01:49.2]} 14. Qxd5 {[%clk 0:02:29.5]}
14... exd5 {[%clk 0:01:50.1]} 15. a3 {[%clk 0:02:29.3]} 15... Bxc3+ {[%clk
0:01:47.3]} 16. bxc3 {[%clk 0:02:30]} 16... a4 {[%clk 0:01:41.5]} 17. Rab1
{[%clk 0:02:29.4]} 17... Na5 {[%clk 0:01:39.7]} 18. Ne5 {[%clk 0:02:28.9]} 18...
Be6 {[%clk 0:01:36.6]} 19. Kc2 {[%clk 0:02:24.7]} 19... f6 {[%clk 0:01:32.8]}
20. Nd3 {[%clk 0:02:23]} 20... Bf7 {[%clk 0:01:23.6]} 21. f3 {[%clk 0:02:18.5]}
21... b6 {[%clk 0:01:17.9]} 22. e4 {[%clk 0:02:16.6]} 22... Nc4 {[%clk
0:01:16.8]} 23. Ra1 {[%clk 0:02:12.1]} 23... Rfe8 {[%clk 0:01:08]} 24. Nf2
{[%clk 0:02:07.5]} 24... Nd6 {[%clk 0:01:04.8]} 25. Bd3 {[%clk 0:02:06.5]} 25...
c5 {[%clk 0:01:01.2]} 26. dxc5 {[%clk 0:02:04.4]} 26... bxc5 {[%clk 0:01:02.1]}
27. exd5 {[%clk 0:02:04.5]} 27... Bxd5 {[%clk 0:01:00.1]} 28. Rhd1 {[%clk
0:02:03.7]} 28... Bxf3 {[%clk 0:00:58.2]} 29. Bxh7+ {[%clk 0:01:58.2]} 29...
Kxh7 {[%clk 0:00:58.7]} 30. Rxd6 {[%clk 0:01:59]} 30... Re2+ {[%clk 0:00:58.9]}
31. Rd2 {[%clk 0:01:51.8]} 31... Rae8 {[%clk 0:00:59.4]} 32. Nd3 {[%clk
0:01:49.8]} 32... Rxd2+ {[%clk 0:00:54.9]} 33. Kxd2 {[%clk 0:01:49.5]} 33...
Re2+ {[%clk 0:00:54.6]} 34. Kc1 {[%clk 0:01:49.6]} 34... c4 {[%clk 0:00:49.3]}
35. Nc5 {[%clk 0:01:49.5]} 35... Re1+ {[%clk 0:00:41.4]} 36. Kb2 {[%clk
0:01:48.9]} 36... Bd1 {[%clk 0:00:41.5]} 37. Rc1 {[%clk 0:01:42.8]} 37... Re2+
{[%clk 0:00:40.9]} 38. Ka1 {[%clk 0:01:42.4]} 38... Bb3 {[%clk 0:00:38.9]} 39.
Rf1 {[%clk 0:01:38.1]} 39... Re3 {[%clk 0:00:31.3]} 40. Kb2 {[%clk 0:01:37.1]}
40... Rxh3 {[%clk 0:00:30.1]} 41. Nxb3 {[%clk 0:01:37.3]} 41... axb3 {[%clk
0:00:29.3]} 42. a4 {[%clk 0:01:37.1]} 42... Rh2+ {[%clk 0:00:29]} 43. Ka3 {[%clk
0:01:34.8]} 43... Ra2+ {[%clk 0:00:21.1]} 44. Kb4 {[%clk 0:01:34.8]} 44... b2
{[%clk 0:00:21.4]} 45. Rb1 {[%clk 0:01:34.9]} 45... Kg6 {[%clk 0:00:18.6]} 46.
a5 {[%clk 0:01:33.8]} 46... Kg5 {[%clk 0:00:16.8]} 47. Kb5 {[%clk 0:01:33.9]}
47... Kxg4 {[%clk 0:00:15.4]} 48. a6 {[%clk 0:01:33.1]} 48... f5 {[%clk
0:00:15.6]} 49. Kb6 {[%clk 0:01:33.1]} 49... f4 {[%clk 0:00:15.4]} 50. a7 {[%clk
0:01:31.5]} 50... f3 {[%clk 0:00:15.7]} 51. Kc5 {[%clk 0:01:27]} 51... f2 {[%clk
0:00:14.5]} 52. Rxb2 {[%clk 0:01:25.6]} 52... Rxb2 {[%clk 0:00:13.5]} 53. a8=Q
{[%clk 0:01:25.3]} 53... f1=Q {[%clk 0:00:14]} 54. Qc8+ {[%clk 0:01:25.1]} 54...
Qf5+ {[%clk 0:00:14.2]} 55. Qxf5+ {[%clk 0:01:24.3]} 55... Kxf5 {[%clk
0:00:14.6]} 56. Kxc4 {[%clk 0:01:25.2]} 56... Ke4 {[%clk 0:00:15.2]} 57. Kc5
{[%clk 0:01:24.8]} 57... g5 {[%clk 0:00:15.9]} 0-1

[Event "Early-Titled-Tuesday-Blitz-September-05-2023"]
[Site "Chess.com"]
[Date "2023.09.05"]
[Round "5"]
[White "Journey_to_GrandMaster_YT"]
[Black "francyIM"]
[Result "1-0"]
[WhiteElo "2626"]
[BlackElo "2833"]
[TimeControl "180+1"]
[EndTime "8:54:17 PDT"]
[Termination "Journey_to_GrandMaster_YT won on time"]

1. d4 {[%clk 0:02:59.2]} 1... Nf6 {[%clk 0:02:51.8]} 2. Nf3 {[%clk 0:02:59.5]}
2... e6 {[%clk 0:02:52.7]} 3. c4 {[%clk 0:02:59.2]} 3... d5 {[%clk 0:02:43.1]}
4. Nc3 {[%clk 0:02:58.6]} 4... Be7 {[%clk 0:02:43.3]} 5. Bg5 {[%clk 0:02:58]}
5... c6 {[%clk 0:02:42.8]} 6. e3 {[%clk 0:02:58.3]} 6... Nbd7 {[%clk 0:02:42.8]}
7. Qc2 {[%clk 0:02:58.5]} 7... h6 {[%clk 0:02:42.6]} 8. Bh4 {[%clk 0:02:58.4]}
8... O-O {[%clk 0:02:43.2]} 9. cxd5 {[%clk 0:02:53.2]} 9... exd5 {[%clk
0:02:41.3]} 10. Bd3 {[%clk 0:02:53.2]} 10... Re8 {[%clk 0:02:41.9]} 11. O-O
{[%clk 0:02:53.3]} 11... Ne4 {[%clk 0:02:41]} 12. Bxe7 {[%clk 0:02:51.2]} 12...
Qxe7 {[%clk 0:02:37.6]} 13. Bxe4 {[%clk 0:02:50.8]} 13... dxe4 {[%clk
0:02:33.4]} 14. Nd2 {[%clk 0:02:51.2]} 14... Nf6 {[%clk 0:02:33.9]} 15. Rab1
{[%clk 0:02:46.5]} 15... Bf5 {[%clk 0:02:31.5]} 16. b4 {[%clk 0:02:45]} 16...
Rac8 {[%clk 0:02:31.7]} 17. Nc4 {[%clk 0:02:24.9]} 17... Nd5 {[%clk 0:02:19.3]}
18. Qb3 {[%clk 0:02:07.4]} 18... Be6 {[%clk 0:02:15.8]} 19. Nxe4 {[%clk
0:02:01.4]} 19... Nb6 {[%clk 0:02:08.5]} 20. Ned6 {[%clk 0:01:38.7]} 20... Nxc4
{[%clk 0:02:00.4]} 21. Nxc8 {[%clk 0:01:28.6]} 21... Rxc8 {[%clk 0:02:01.3]} 22.
Qc3 {[%clk 0:01:25.3]} 22... Rd8 {[%clk 0:01:55]} 23. Rfd1 {[%clk 0:01:15.5]}
23... f5 {[%clk 0:01:36.5]} 24. b5 {[%clk 0:01:13.8]} 24... Bd5 {[%clk
0:01:35.1]} 25. bxc6 {[%clk 0:01:01.6]} 25... bxc6 {[%clk 0:01:36]} 26. Rb4
{[%clk 0:00:41.8]} 26... Nd6 {[%clk 0:01:01.3]} 27. f3 {[%clk 0:00:35.3]} 27...
Re8 {[%clk 0:01:00.8]} 28. Re1 {[%clk 0:00:29.8]} 28... Qg5 {[%clk 0:00:43.7]}
29. Kh1 {[%clk 0:00:16.2]} 29... Qh4 {[%clk 0:00:38.3]} 30. Rbb1 {[%clk
0:00:13.3]} 1-0

[Event "Early-Titled-Tuesday-Blitz-September-05-2023"]
[Site "Chess.com"]
[Date "2023.09.05"]
[Round "5"]
[White "Just_Lucky_1"]
[Black "Brave_spirit12"]
[Result "1-0"]
[WhiteElo "2526"]
[BlackElo "2791"]
[TimeControl "180+1"]
[EndTime "8:54:17 PDT"]
[Termination "Just_Lucky_1 won on time"]

1. e4 {[%clk 0:02:57.1]} 1... e6 {[%clk 0:02:59.8]} 2. d4 {[%clk 0:02:55.9]}
2... d5 {[%clk 0:03:00.2]} 3. Nc3 {[%clk 0:02:56.1]} 3... Nf6 {[%clk 0:03:00]}
4. Bg5 {[%clk 0:02:55]} 4... dxe4 {[%clk 0:02:59.5]} 5. Nxe4 {[%clk 0:02:55.9]}
5... Be7 {[%clk 0:02:59.8]} 6. Bxf6 {[%clk 0:02:56.4]} 6... gxf6 {[%clk
0:03:00.1]} 7. Qd2 {[%clk 0:02:56.7]} 7... f5 {[%clk 0:02:59.4]} 8. Nc3 {[%clk
0:02:55.3]} 8... c5 {[%clk 0:02:58.5]} 9. d5 {[%clk 0:02:43.1]} 9... e5 {[%clk
0:02:56.3]} 10. f4 {[%clk 0:02:35.7]} 10... e4 {[%clk 0:02:52.7]} 11. O-O-O
{[%clk 0:02:35.2]} 11... Bf6 {[%clk 0:02:48.8]} 12. g4 {[%clk 0:02:30.2]} 12...
O-O {[%clk 0:02:27.8]} 13. gxf5 {[%clk 0:02:18.2]} 13... Bxf5 {[%clk 0:02:28.7]}
14. Nge2 {[%clk 0:02:18.6]} 14... Re8 {[%clk 0:02:21.5]} 15. Rg1+ {[%clk
0:02:10.9]} 15... Kh8 {[%clk 0:02:21.2]} 16. Ng3 {[%clk 0:02:10.7]} 16... Bg4
{[%clk 0:02:19.8]} 17. Be2 {[%clk 0:02:09.4]} 17... Bxe2 {[%clk 0:02:16.4]} 18.
Ncxe2 {[%clk 0:01:44.9]} 18... Nd7 {[%clk 0:01:51.9]} 19. Nh5 {[%clk 0:01:39.1]}
19... Qb6 {[%clk 0:01:50.2]} 20. c3 {[%clk 0:01:22.1]} 20... c4 {[%clk
0:01:38.6]} 21. d6 {[%clk 0:01:11.6]} 21... Re6 {[%clk 0:01:31.9]} 22. f5 {[%clk
0:01:04]} 22... e3 {[%clk 0:01:28.9]} 23. Qd5 {[%clk 0:00:51.6]} 23... Nc5
{[%clk 0:00:19.4]} 24. fxe6 {[%clk 0:00:47.4]} 24... Na4 {[%clk 0:00:19.2]} 25.
b3 {[%clk 0:00:34.4]} 25... Nxc3 {[%clk 0:00:18.9]} 26. Nxc3 {[%clk 0:00:32.4]}
26... e2 {[%clk 0:00:13.8]} 27. Nxf6 {[%clk 0:00:23.9]} 27... Qe3+ {[%clk
0:00:09.4]} 28. Qd2 {[%clk 0:00:21.9]} 28... exd1=Q+ {[%clk 0:00:05.5]} 29. Rxd1
{[%clk 0:00:21.3]} 29... Qxe6 {[%clk 0:00:06.2]} 30. d7 {[%clk 0:00:17.9]} 30...
Rd8 {[%clk 0:00:03.2]} 31. Qh6 {[%clk 0:00:16.9]} 1-0

[Event "Early-Titled-Tuesday-Blitz-September-05-2023"]
[Site "Chess.com"]
[Date "2023.09.05"]
[Round "5"]
[White "fastestmindalive"]
[Black "santosalberto1987"]
[Result "0-1"]
[WhiteElo "2699"]
[BlackElo "2564"]
[TimeControl "180+1"]
[EndTime "8:54:21 PDT"]
[Termination "santosalberto1987 won on time"]

1. e4 {[%clk 0:03:00.9]} 1... c5 {[%clk 0:02:57.6]} 2. Nc3 {[%clk 0:03:00.5]}
2... Nc6 {[%clk 0:02:56.4]} 3. f4 {[%clk 0:03:00.6]} 3... g6 {[%clk 0:02:55.4]}
4. Nf3 {[%clk 0:03:01.1]} 4... Bg7 {[%clk 0:02:54.8]} 5. Bb5 {[%clk 0:03:01.5]}
5... Nd4 {[%clk 0:02:55]} 6. a4 {[%clk 0:03:02.1]} 6... e6 {[%clk 0:02:53.3]} 7.
Nxd4 {[%clk 0:02:55.4]} 7... cxd4 {[%clk 0:02:53.1]} 8. Ne2 {[%clk 0:02:54.4]}
8... Ne7 {[%clk 0:02:51.5]} 9. d3 {[%clk 0:02:46.1]} 9... O-O {[%clk 0:02:47.1]}
10. h4 {[%clk 0:02:44.1]} 10... d5 {[%clk 0:02:45.2]} 11. a5 {[%clk 0:02:34.8]}
11... a6 {[%clk 0:02:43.8]} 12. Ba4 {[%clk 0:02:34.5]} 12... Qxa5+ {[%clk
0:02:41.8]} 13. Bd2 {[%clk 0:02:34.9]} 13... Qb6 {[%clk 0:02:41.2]} 14. h5
{[%clk 0:02:33.2]} 14... dxe4 {[%clk 0:02:31.5]} 15. dxe4 {[%clk 0:02:30.2]}
15... Qxb2 {[%clk 0:02:23.1]} 16. Rb1 {[%clk 0:02:17.6]} 16... Qa3 {[%clk
0:02:22.6]} 17. Bb3 {[%clk 0:02:08.3]} 17... Bd7 {[%clk 0:02:15.6]} 18. Ng3
{[%clk 0:02:06]} 18... Bc6 {[%clk 0:01:53.4]} 19. Qg4 {[%clk 0:02:00.2]} 19...
Rfd8 {[%clk 0:01:38.2]} 20. hxg6 {[%clk 0:01:22.8]} 20... hxg6 {[%clk
0:01:37.7]} 21. Qh4 {[%clk 0:01:07]} 21... d3 {[%clk 0:01:29.5]} 22. c3 {[%clk
0:01:03.7]} 22... Qc5 {[%clk 0:01:16.7]} 23. f5 {[%clk 0:00:49.2]} 23... exf5
{[%clk 0:01:14.6]} 24. Qh7+ {[%clk 0:00:38.8]} 24... Kf8 {[%clk 0:01:14.4]} 25.
Bh6 {[%clk 0:00:14]} 25... Qxc3+ {[%clk 0:01:13.8]} 26. Kf2 {[%clk 0:00:13]}
26... Ng8 {[%clk 0:00:37.9]} 27. exf5 {[%clk 0:00:10.9]} 27... Nxh6 {[%clk
0:00:31.1]} 28. Rxh6 {[%clk 0:00:10.4]} 28... Qd2+ {[%clk 0:00:30.3]} 29. Kf1
{[%clk 0:00:03.7]} 29... Qxh6 {[%clk 0:00:21.2]} 30. fxg6 {[%clk 0:00:01.1]}
30... Qxh7 {[%clk 0:00:19.5]} 31. gxh7 {[%clk 0:00:02]} 31... Rd6 {[%clk
0:00:18.5]} 32. Kg1 {[%clk 0:00:01]} 32... Rh6 {[%clk 0:00:18.1]} 0-1

[Event "Early-Titled-Tuesday-Blitz-September-05-2023"]
[Site "Chess.com"]
[Date "2023.09.05"]
[Round "5"]
[White "Keeper0416"]
[Black "Truequitos"]
[Result "1-0"]
[WhiteElo "2589"]
[BlackElo "2425"]
[TimeControl "180+1"]
[EndTime "8:54:24 PDT"]
[Termination "Keeper0416 won by resignation"]

1. d4 {[%clk 0:03:00.9]} 1... Nf6 {[%clk 0:02:58.9]} 2. Bf4 {[%clk 0:03:01.1]}
2... d6 {[%clk 0:02:58.3]} 3. c4 {[%clk 0:03:00.5]} 3... g6 {[%clk 0:02:56.4]}
4. Nc3 {[%clk 0:03:00.9]} 4... Bg7 {[%clk 0:02:47.4]} 5. h4 {[%clk 0:02:58.9]}
5... h6 {[%clk 0:02:44.5]} 6. Qd2 {[%clk 0:02:53.4]} 6... Nc6 {[%clk 0:02:41]}
7. d5 {[%clk 0:02:52.4]} 7... Ne5 {[%clk 0:02:11.4]} 8. e4 {[%clk 0:02:46.7]}
8... e6 {[%clk 0:02:01.3]} 9. O-O-O {[%clk 0:02:39.2]} 9... exd5 {[%clk
0:01:57.3]} 10. cxd5 {[%clk 0:02:37.4]} 10... Qe7 {[%clk 0:01:47.9]} 11. f3
{[%clk 0:02:29.7]} 11... Bd7 {[%clk 0:01:47.5]} 12. Qe3 {[%clk 0:02:24.1]} 12...
Nh5 {[%clk 0:01:33.4]} 13. Bh2 {[%clk 0:02:22.9]} 13... O-O {[%clk 0:01:28.8]}
14. g4 {[%clk 0:02:22.6]} 14... Nf6 {[%clk 0:01:29.2]} 15. Bf4 {[%clk
0:02:23.2]} 15... c6 {[%clk 0:01:08.6]} 16. dxc6 {[%clk 0:01:47.8]} 16... bxc6
{[%clk 0:01:07.7]} 17. Be2 {[%clk 0:01:34]} 17... Rfe8 {[%clk 0:01:06.2]} 18.
Bxh6 {[%clk 0:01:30.5]} 18... Bh8 {[%clk 0:00:46.5]} 19. h5 {[%clk 0:01:25.6]}
19... Rab8 {[%clk 0:00:44.2]} 20. Rd2 {[%clk 0:01:20.6]} 20... d5 {[%clk
0:00:40.9]} 21. hxg6 {[%clk 0:01:12.5]} 21... fxg6 {[%clk 0:00:25.8]} 22. Bg5
{[%clk 0:01:06.2]} 22... Nf7 {[%clk 0:00:22.1]} 23. Nh3 {[%clk 0:00:58.6]} 23...
dxe4 {[%clk 0:00:19.2]} 24. f4 {[%clk 0:00:50.4]} 24... Qe6 {[%clk 0:00:11.4]}
25. f5 {[%clk 0:00:41.8]} 25... Qe5 {[%clk 0:00:08.5]} 26. Bf4 {[%clk
0:00:37.6]} 26... Qa5 {[%clk 0:00:07.4]} 27. Bxb8 {[%clk 0:00:37.4]} 27... Nd5
{[%clk 0:00:07.2]} 28. Rxd5 {[%clk 0:00:36.4]} 28... cxd5 {[%clk 0:00:08.1]} 29.
fxg6 {[%clk 0:00:36.2]} 29... Ne5 {[%clk 0:00:06.8]} 30. Bxe5 {[%clk 0:00:31]}
30... Bxe5 {[%clk 0:00:07.7]} 31. Qh6 {[%clk 0:00:24.4]} 31... Bg7 {[%clk
0:00:02.5]} 32. Qh7+ {[%clk 0:00:23.9]} 32... Kf8 {[%clk 0:00:03.1]} 33. Rf1+
{[%clk 0:00:24.6]} 33... Ke7 {[%clk 0:00:03.6]} 34. Qxg7+ {[%clk 0:00:25.2]}
34... Kd8 {[%clk 0:00:04.4]} 35. Qf6+ {[%clk 0:00:25.2]} 35... Kc8 {[%clk
0:00:04.5]} 36. Qd4 {[%clk 0:00:25.1]} 36... Re6 {[%clk 0:00:02.7]} 37. g7
{[%clk 0:00:24.4]} 1-0

[Event "Early-Titled-Tuesday-Blitz-September-05-2023"]
[Site "Chess.com"]
[Date "2023.09.05"]
[Round "5"]
[White "AleksandraMilovic"]
[Black "Chessdemon2019"]
[Result "0-1"]
[WhiteElo "2124"]
[BlackElo "2409"]
[TimeControl "180+1"]
[EndTime "8:54:24 PDT"]
[Termination "Chessdemon2019 won by checkmate"]

1. e4 {[%clk 0:03:00.9]} 1... c5 {[%clk 0:03:00]} 2. Nf3 {[%clk 0:02:58.7]} 2...
d6 {[%clk 0:03:00.2]} 3. Bb5+ {[%clk 0:02:58.3]} 3... Nd7 {[%clk 0:02:58.7]} 4.
c4 {[%clk 0:02:57.6]} 4... Nf6 {[%clk 0:02:57.7]} 5. Nc3 {[%clk 0:02:57.4]} 5...
g6 {[%clk 0:02:57.3]} 6. O-O {[%clk 0:02:56.6]} 6... Bg7 {[%clk 0:02:57.4]} 7.
d4 {[%clk 0:02:57.1]} 7... O-O {[%clk 0:02:56.2]} 8. Re1 {[%clk 0:02:52.7]} 8...
cxd4 {[%clk 0:02:55.2]} 9. Nxd4 {[%clk 0:02:52.1]} 9... a6 {[%clk 0:02:54.9]}
10. Ba4 {[%clk 0:02:51.9]} 10... Nc5 {[%clk 0:02:51.6]} 11. Bc2 {[%clk
0:02:51.1]} 11... e5 {[%clk 0:02:51.6]} 12. Nde2 {[%clk 0:02:35.2]} 12... Rb8
{[%clk 0:02:42.8]} 13. Bg5 {[%clk 0:02:14.5]} 13... Be6 {[%clk 0:02:36.2]} 14.
Bxf6 {[%clk 0:02:00.3]} 14... Qxf6 {[%clk 0:02:33.1]} 15. Nd5 {[%clk 0:01:59.4]}
15... Bxd5 {[%clk 0:02:32.5]} 16. Qxd5 {[%clk 0:01:58.4]} 16... Rfd8 {[%clk
0:02:29.4]} 17. Nc3 {[%clk 0:01:56.4]} 17... Ne6 {[%clk 0:02:24.6]} 18. Ne2
{[%clk 0:01:47.8]} 18... b5 {[%clk 0:02:16.4]} 19. b3 {[%clk 0:00:53.1]} 19...
bxc4 {[%clk 0:02:12.5]} 20. Qxc4 {[%clk 0:00:51.5]} 20... Rdc8 {[%clk
0:02:07.5]} 21. Qd3 {[%clk 0:00:48.5]} 21... Nc5 {[%clk 0:02:06.5]} 22. Qd2
{[%clk 0:00:43.9]} 22... Qe7 {[%clk 0:01:53.7]} 23. Red1 {[%clk 0:00:37.8]}
23... Rc6 {[%clk 0:01:48]} 24. b4 {[%clk 0:00:29.3]} 24... Ne6 {[%clk
0:01:47.2]} 25. Ba4 {[%clk 0:00:26.6]} 25... Rcb6 {[%clk 0:01:47.4]} 26. a3
{[%clk 0:00:26.2]} 26... f5 {[%clk 0:01:44.5]} 27. exf5 {[%clk 0:00:15.6]} 27...
gxf5 {[%clk 0:01:44.6]} 28. Rac1 {[%clk 0:00:14.5]} 28... Kh8 {[%clk 0:01:34.1]}
29. Nc3 {[%clk 0:00:11]} 29... Nf4 {[%clk 0:01:21.4]} 30. g3 {[%clk 0:00:09.7]}
30... Qg5 {[%clk 0:01:19.9]} 31. Nd5 {[%clk 0:00:05.6]} 31... R6b7 {[%clk
0:01:10.7]} 32. Nxf4 {[%clk 0:00:04.6]} 32... exf4 {[%clk 0:01:10.5]} 33. Qxd6
{[%clk 0:00:04.4]} 33... fxg3 {[%clk 0:01:05.4]} 34. Qxg3 {[%clk 0:00:04.9]}
34... Qe7 {[%clk 0:00:58.3]} 35. Rd7 {[%clk 0:00:04.4]} 35... Rxd7 {[%clk
0:00:58.2]} 36. Qxb8+ {[%clk 0:00:04.2]} 36... Rd8 {[%clk 0:00:58.7]} 37. Qf4
{[%clk 0:00:03.7]} 37... Be5 {[%clk 0:00:53.2]} 38. Qe3 {[%clk 0:00:02.8]} 38...
Rg8+ {[%clk 0:00:51.3]} 39. Kh1 {[%clk 0:00:02.7]} 39... Qf6 {[%clk 0:00:47]}
40. Qh3 {[%clk 0:00:02.7]} 40... Qg5 {[%clk 0:00:43.9]} 41. Rf1 {[%clk
0:00:01.8]} 41... Qf4 {[%clk 0:00:41]} 42. Bc6 {[%clk 0:00:01.9]} 42... Rg4
{[%clk 0:00:33.1]} 43. f3 {[%clk 0:00:02.1]} 43... Rh4 {[%clk 0:00:33.3]} 44.
Qg2 {[%clk 0:00:01]} 44... Rxh2+ {[%clk 0:00:33.5]} 45. Kg1 {[%clk 0:00:01.5]}
45... Rxg2+ {[%clk 0:00:33.8]} 46. Kxg2 {[%clk 0:00:02.4]} 46... Qh2# {[%clk
0:00:34.4]} 0-1

[Event "Early-Titled-Tuesday-Blitz-September-05-2023"]
[Site "Chess.com"]
[Date "2023.09.05"]
[Round "5"]
[White "emirgulbeyaz"]
[Black "WelshTiger"]
[Result "1-0"]
[WhiteElo "2361"]
[BlackElo "2471"]
[TimeControl "180+1"]
[EndTime "8:54:29 PDT"]
[Termination "emirgulbeyaz won on time"]

1. d4 {[%clk 0:02:55.5]} 1... Nf6 {[%clk 0:02:56.5]} 2. Bf4 {[%clk 0:02:52.9]}
2... g6 {[%clk 0:02:50.8]} 3. Nc3 {[%clk 0:02:51.5]} 3... d5 {[%clk 0:02:48.4]}
4. e3 {[%clk 0:02:48.4]} 4... c6 {[%clk 0:02:44.8]} 5. h4 {[%clk 0:02:41.2]}
5... h6 {[%clk 0:02:42.7]} 6. Nf3 {[%clk 0:02:38.5]} 6... Bg7 {[%clk 0:02:43]}
7. Ne5 {[%clk 0:02:38.2]} 7... Nbd7 {[%clk 0:02:28.5]} 8. Bd3 {[%clk 0:02:36.5]}
8... Nxe5 {[%clk 0:02:27.2]} 9. Bxe5 {[%clk 0:02:37.4]} 9... Bf5 {[%clk
0:02:15.5]} 10. Bxf5 {[%clk 0:02:33.2]} 10... gxf5 {[%clk 0:02:16.4]} 11. Qf3
{[%clk 0:02:27.4]} 11... e6 {[%clk 0:02:16.5]} 12. O-O-O {[%clk 0:02:28]} 12...
Qe7 {[%clk 0:02:11.7]} 13. Kb1 {[%clk 0:01:57.8]} 13... Rg8 {[%clk 0:02:06]} 14.
Ne2 {[%clk 0:01:55.5]} 14... Ne4 {[%clk 0:01:58.4]} 15. Bxg7 {[%clk 0:01:54.3]}
15... Rxg7 {[%clk 0:01:59.3]} 16. Nf4 {[%clk 0:01:54.8]} 16... Qb4 {[%clk
0:01:57.5]} 17. Ka1 {[%clk 0:01:49.1]} 17... a5 {[%clk 0:01:57.4]} 18. Qe2
{[%clk 0:01:48.8]} 18... a4 {[%clk 0:01:49.8]} 19. a3 {[%clk 0:01:49]} 19... Qb6
{[%clk 0:01:47.1]} 20. Nh5 {[%clk 0:01:47.7]} 20... Rg6 {[%clk 0:01:40.8]} 21.
f3 {[%clk 0:01:44.6]} 21... Nd6 {[%clk 0:01:28.8]} 22. Nf4 {[%clk 0:01:41.4]}
22... Rg8 {[%clk 0:01:27.7]} 23. Nd3 {[%clk 0:01:35.8]} 23... Ra5 {[%clk
0:01:23.6]} 24. Rhg1 {[%clk 0:01:24.5]} 24... Rb5 {[%clk 0:01:04.9]} 25. g4
{[%clk 0:01:19]} 25... fxg4 {[%clk 0:01:04.7]} 26. Rxg4 {[%clk 0:01:19.9]} 26...
Rg5 {[%clk 0:01:04.4]} 27. hxg5 {[%clk 0:01:19.6]} 27... Nc4 {[%clk 0:00:46]}
28. c3 {[%clk 0:00:39.9]} 28... Rb3 {[%clk 0:00:41]} 29. Nb4 {[%clk 0:00:35]}
29... hxg5 {[%clk 0:00:36.3]} 30. Rb1 {[%clk 0:00:25.5]} 30... c5 {[%clk
0:00:14.2]} 31. dxc5 {[%clk 0:00:23]} 31... Qxc5 {[%clk 0:00:14.6]} 32. Rxg5
{[%clk 0:00:20.6]} 32... Nxa3 {[%clk 0:00:11.1]} 33. Rg8+ {[%clk 0:00:19.2]}
33... Ke7 {[%clk 0:00:10.9]} 34. Qg2 {[%clk 0:00:14.4]} 34... Qxe3 {[%clk
0:00:01.3]} 35. Qg7 {[%clk 0:00:12.3]} 1-0